Cogmind - Beta 10.2 @@@ ROGUE MODE // 2021.06.14 @ 10:59:43 Player: sentrybuster Result: Self-destructed Performance ------------- Evolutions (7) 3500 Regions Visited (12) 2400 Robots Destroyed (163) 815 Value Destroyed (5947) 5947 Prototype IDs (39) 780 Alien Tech Used (0) 0 Bonus (340) 340 TOTAL SCORE: 13782 Bonus ------- High Alert Combat Kills 260 Aligned with FarCom 300 Friendly Fire -220 Cogmind --------- Core Integrity 36/1300 Matter 18/300 Energy 82/100 System Corruption 2% Temperature Cool (0) Movement Walking (100) Location -3/Armory Parts ------- > --- POWER (1) -------- (None) > --- PROPULSION (6) --- Enhanced Armored Medium Treads Enhanced Armored Medium Treads Biometal Medium Treads Enhanced Biometal Leg Enhanced Biometal Leg Enhanced Biometal Leg > --- UTILITY (9) ------ Fusion Compressor Enhanced Optical Array Advanced Targeting Computer > --- WEAPON (5) ------- Compact HERF Cannon Enhanced Nova Cannon Railgun > --- INVENTORY (4) ---- Medium Treads Enhanced Biometal Leg Field Propulsion Drive Micro-nuke Launcher Peak State ------------ > --- POWER ------------ Light Antimatter Reactor > --- PROPULSION ------- Armored Medium Treads Advanced Medium Treads Heavy Siege Treads Advanced Heavy Treads > --- UTILITY ---------- High-capacity Storage Unit Enhanced Optical Array Experimental Signal Interpreter Improved Terrain Scanner Advanced Terrain Scan Processor Advanced Targeting Computer Improved Propulsion Shielding Improved Medium Armor Plating PSU Rigger > --- WEAPON ----------- XL Autogun Array Precision Grenade Launcher > --- INVENTORY -------- Heavy Deuterium Engine Angular Momentum Engine Neutrino Core Micro Fission Core Light Antimatter Reactor Reinforced Antimatter Reactor Improved Medium Treads Advanced Cooling System Superbattery Component Analysis Suite Enhanced Force Rifle Enhanced Gauss Cannon [Rating: 133] Favorites ----------- Power Micro Nuclear Core Engine Ion Engine Power Core Micro Nuclear Core Reactor Light Antimatter Reactor Propulsion Armored Treads Treads Armored Treads Leg Aluminum Leg Wheel Wheel Flight Unit Field Propulsion Drive Utility High-capacity Storage Unit Device Improved Terrain Scanner Storage High-capacity Storage Unit Processor Enhanced Optical Array Hackware Hacking Suite Protection Improved Medium Armor Plating Weapon XL Autogun Array Energy Gun Enhanced Force Rifle Energy Cannon Heavy Ion Cannon Ballistic Gun XL Autogun Array Ballistic Cannon Enhanced Gauss Cannon Launcher Mini Grenade Launcher Piercing Weapon Spear Build | -11 -10 -10 -10 -9 -8 -7 -7 -6 -5 -4 -3 -3 ------- Run | Scr Mat Min Exi Min Mat Fac Sto Fac Fac Fac Res Arm Slots Evolved 14 | . . . . . 4 2 . 2 2 2 2 . Power . | . . . . . . . . . . . . . Propulsion 4 | . . . . . 1 . . 1 . 1 1 . Utility 7 | . . . . . 1 2 . 1 1 1 1 . Weapon 3 | . . . . . 2 . . . 1 . . . Parts Attached 138 | 6 6 . . 2 13 11 5 15 14 26 26 14 Power 8 | 1 1 . . . . 1 . . . 3 2 . Engine 2 | 1 1 . . . . . . . . . . . Core 3 | . . . . . . 1 . . . 1 1 . Reactor 3 | . . . . . . . . . . 2 1 . Propulsion 33 | 2 . . . 2 4 . . 3 1 4 7 10 Treads 18 | . . . . . 4 . . 2 1 4 3 4 Leg 12 | 2 . . . 2 . . . 1 . . 1 6 Wheel 1 | . . . . . . . . . . . 1 . Hover . | . . . . . . . . . . . . . Flight 2 | . . . . . . . . . . . 2 . Utility 74 | 1 2 . . . 8 10 5 10 12 18 7 1 Device 57 | . 1 . . . 6 7 5 9 11 14 3 1 Storage 4 | 1 1 . . . 1 . . . . 1 . . Processor 8 | . . . . . 1 2 . 1 1 1 2 . Hackware 1 | . . . . . . 1 . . . . . . Protection 4 | . . . . . . . . . . 2 2 . Artifact . | . . . . . . . . . . . . . Weapon 23 | 2 3 . . . 1 . . 2 1 1 10 3 Energy Gun 5 | 2 1 . . . . . . . . 1 1 . Energy Cannon 4 | . . . . . . . . . 1 . 1 2 Ballistic Gun 7 | . 1 . . . 1 . . 1 . . 3 1 Ballistic Cannon 1 | . . . . . . . . . . . 1 . Launcher 5 | . 1 . . . . . . 1 . . 3 . Special Weapon . | . . . . . . . . . . . . . Impact Weapon . | . . . . . . . . . . . . . Slashing Weapon . | . . . . . . . . . . . . . Piercing Weapon 1 | . . . . . . . . . . . 1 . Special Melee Weapon . | . . . . . . . . . . . . . Unidentified Prototypes 3 | . . . . . . . . . . . 1 2 Parts Lost 30 | . 2 . . . . . . 1 . 2 23 2 Power 4 | . 1 . . . . . . . . 1 2 . Propulsion 9 | . . . . . . . . 1 . . 7 1 Utility 8 | . . . . . . . . . . 1 6 1 Weapon 9 | . 1 . . . . . . . . . 8 . Highest Loss Streak 14 | . 1 . . . . . . 1 . 1 14 2 Average Slot Usage (%) 76 | . 98 100 100 100 71 74 76 76 81 81 52 47 Engine 3 | . 13 14 14 14 9 1 . . . . . . Core 2 | . . . . . . 5 7 6 5 1 . . Treads 17 | . . . . . 11 23 23 22 23 25 13 8 Leg 5 | . 28 28 28 28 14 . . . . . . 10 Device 9 | . 13 14 14 14 9 7 7 12 10 11 4 3 Storage 7 | . 14 14 14 14 9 7 7 6 5 6 3 . Processor 13 | . . . . . 8 13 15 16 22 19 15 9 Hackware 1 | . . . . . . 6 7 3 . . . . Energy Gun 1 | . 15 . . . . . . . . 4 . . Ballistic Gun 6 | . 9 14 14 14 9 7 7 5 5 5 2 3 Launcher 1 | . 3 14 14 14 . . . . . . 2 . Naked Turns 7 | . . . . . . . . . . . 7 . Heaviest Build 81 | 12 18 18 18 18 53 55 55 57 67 81 77 20 Greatest Support 197 | 20 20 20 20 20 60 60 60 88 88 157 197 105 Greatest Overweight (x) 12 | 2 . . . . 1 . . . 1 . 12 . Average Overweight (x) . | . . . . . . . . . . . . . Largest Inventory Capacity 12 | 6 8 8 8 8 12 12 12 12 12 12 12 4 Average Capacity 10 | 5 7 8 8 8 8 12 12 12 12 12 10 4 Most Carried 12 | 6 8 8 8 8 8 12 12 12 12 12 12 4 Average Carried 9 | 3 7 8 7 8 7 11 11 11 11 11 8 2 Final Capacity 12 | 6 8 8 8 8 12 12 12 12 12 12 4 4 Final Carried 12 | 6 8 8 8 8 8 12 12 12 12 12 3 4 Class Distribution -------------------- 42% | Skirmisher 24% | Mutant 14% | Trapper-Skirmisher 9% | Trapper-Gunner 6% | Trapper-Mutant Dominant Class ---------------- Mutant | -10/Materials Mutant | -10/Mines Mutant | -10/Exiles Mutant | -9/Mines Skirmisher | -8/Materials Skirmisher | -7/Factory Skirmisher | -7/Storage Skirmisher | -6/Factory Trapper-Skirmisher | -5/Factory Trapper-Skirmisher | -4/Factory Mutant | -3/Research Mutant | -3/Armory Resources | -11 -10 -10 -10 -9 -8 -7 -7 -6 -5 -4 -3 -3 ----------- Run | Scr Mat Min Exi Min Mat Fac Sto Fac Fac Fac Res Arm Matter Collected 6104 | 260 126 27 . 59 427 1120 565 804 549 959 937 271 Remotely . | . . . . . . . . . . . . . Salvage Created 7707 | 115 339 . . 97 512 1372 894 1059 770 1076 1202 271 Parts 352 | 5 22 . . 10 25 71 33 32 40 50 56 8 Haulers Intercepted 2 | . . . . . 1 . 1 . . . . . Recyclers Shooed 11 | . 1 . . . . 1 1 3 2 1 2 . Parts Field Recycled . | . . . . . . . . . . . . . Retrieved Matter . | . . . . . . . . . . . . . Parts Self-Destructed . | . . . . . . . . . . . . . Prevented . | . . . . . . . . . . . . . Kills | -11 -10 -10 -10 -9 -8 -7 -7 -6 -5 -4 -3 -3 ------- Run | Scr Mat Min Exi Min Mat Fac Sto Fac Fac Fac Res Arm Combat Hostiles Destroyed 98 | . 8 . . 7 3 18 14 10 5 10 20 3 Melee 3 | . . . . . . . . . . . 3 . Guns 66 | . 6 . . . 3 18 14 8 2 10 5 . Cannons 7 | . . . . . . . . . 3 . 2 2 AOE 21 | . 2 . . 7 . . . 2 . . 10 . Classes Destroyed 12 | 2 5 . . . 3 1 . . . 1 . . Worker 12 | . 1 . . . . 1 1 . 2 1 6 . Builder 5 | . . . . . 1 . . . . . 4 . Tunneler 3 | 1 . . . . . 1 . 1 . . . . Hauler 2 | . . . . . 1 . 1 . . . . . Recycler 23 | 1 . . . . 3 8 2 3 2 2 2 . Operator 5 | . 2 . . . 1 . . . 2 . . . Watcher 14 | . 2 . . . 1 2 1 2 2 2 2 . Swarmer 23 | . 2 . . 4 . 6 3 . . . 8 . Grunt 38 | . 6 . . 3 1 5 5 9 . 2 7 . Sentry 17 | . . . . . 2 2 5 1 3 2 1 1 Hunter 7 | . . . . . . . . . . 2 3 2 Programmer 14 | . . . . . . 5 1 1 2 4 1 . Best Kill Streak 9 | 1 6 . . 4 5 4 5 4 5 2 9 1 Combat Bots Only 5 | . 4 . . 4 1 3 5 4 2 2 5 1 Max Kills in Single Turn 3 | 1 2 . . 3 2 1 2 1 1 2 3 1 Gunslinging 1 | . . . . . . . . . . 1 . . Exploded 3 | . 1 . . 3 . . . 1 . . 3 . Melee 1 | . . . . . . . . . . . 1 . Uniques/NPCs Destroyed . | . . . . . . . . . . . . . Combat | -11 -10 -10 -10 -9 -8 -7 -7 -6 -5 -4 -3 -3 -------- Run | Scr Mat Min Exi Min Mat Fac Sto Fac Fac Fac Res Arm Damage Taken 8255 | . 420 . . 166 28 554 394 201 431 962 4573 526 Core 1633 | . 58 . . 37 . 71 18 19 81 85 1144 120 Absorbed by Shields . | . . . . . . . . . . . . . Core Remaining (%) 89 | 100 . . . 62 100 . 87 97 91 92 . . Volleys Fired 422 | 15 38 . . 4 21 63 45 34 51 55 70 26 Largest 3 | 2 2 . . 2 1 1 1 1 2 2 3 2 Hottest 141 | 90 90 . . 50 60 60 60 60 125 141 123 129 Shots Fired 545 | 30 63 . . 5 21 63 45 34 73 82 88 41 Gun 438 | 30 61 . . 1 21 63 45 30 33 82 49 23 Cannon 82 | . . . . . . . . . 40 . 24 18 Launcher 25 | . 2 . . 4 . . . 4 . . 15 . Special . | . . . . . . . . . . . . . Kinetic 356 | . 26 . . 1 21 63 45 30 33 49 65 23 Thermal 144 | 30 35 . . . . . . . 40 33 6 . Explosive 21 | . 2 . . 4 . . . . . . 15 . Electromagnetic 24 | . . . . . . . . 4 . . 2 18 Robot Hit Streak 26 | 4 15 . . 3 12 13 16 13 26 21 19 4 Robot Miss Streak 7 | 6 7 . . 2 3 7 5 5 2 5 3 4 Penetration Max 1 | . . . . . . . . . . . 1 . Secondary Targets 2 | . . . . . . . . . . 2 . . Max Gunslinging Chain 1 | . . . . . . . . . . 1 . . Shots Hit Robots 383 | 11 42 . . 2 17 53 37 30 37 57 76 21 Core Hits 299 | 3 23 . . 7 13 39 32 34 24 34 83 7 Critical Hits 6 | . . . . . . . . . . 2 3 1 Critical Kills 1 | . . . . . . . . . . 1 . . Critical Parts Destroyed 5 | . . . . . . . . . . 1 3 1 Melee Attacks 6 | . . . . . . . . . . . 6 . Impact . | . . . . . . . . . . . . . Slashing . | . . . . . . . . . . . . . Piercing 6 | . . . . . . . . . . . 6 . Sneak Attacks 1 | . . . . . . . . . . . 1 . Combat Hostiles . | . . . . . . . . . . . . . Follow-up Attacks . | . . . . . . . . . . . . . Damage Inflicted 18620 | 138 842 . . 526 740 2333 2139 2234 1712 2480 4910 566 Guns 13548 | 138 555 . . 12 740 2333 2127 1830 1199 2480 1911 223 Cannons 1532 | . . . . . . . . . 513 . 676 343 Explosions 3283 | . 287 . . 506 . . . 404 . . 2086 . Melee 170 | . . . . . . . . . . . 170 . Ramming 87 | . . . . 8 . . 12 . . . 67 . Kinetic 13226 | . 261 . . 12 740 2333 2127 1830 1199 2149 2352 223 Thermal 1674 | 138 294 . . 78 . . . 176 513 331 144 . Explosive 2801 | . 287 . . 428 . . . . . . 2086 . Electromagnetic 662 | . . . . . . . . 228 . . 91 343 Impact . | . . . . . . . . . . . . . Slashing . | . . . . . . . . . . . . . Piercing 170 | . . . . . . . . . . . 170 . Highest Corruption 4 | . 2 2 2 2 . 1 3 1 3 4 2 2 Average Corruption 2 | . 2 2 2 2 . 1 1 1 2 4 1 2 Corruption Purged . | . . . . . . . . . . . . . Effects 52 | . 5 2 1 2 . 3 4 1 5 26 1 2 Message Errors 15 | . 3 2 1 . . 1 2 1 2 2 1 . Matter Fused 9 | . . . . . . . 1 . . 8 . . Heat Flow Errors 4 | . . . . . . . 1 . . 3 . . Energy Discharges 3 | . . . . . . 1 . . . 1 . 1 Data Loss (minor) 10 | . 2 . . 1 . 1 . . 1 5 . . Targeting Errors 10 | . . . . 1 . . . . 2 6 . 1 Weapon Failures 1 | . . . . . . . . . . 1 . . Overload Shots . | . . . . . . . . . . . . . Overflow Damage 200 | . 13 . . 42 . . . 13 23 . 67 42 Projectiles 96 | . . . . . . . . . 23 . 31 42 Explosions 104 | . 13 . . 42 . . . 13 . . 36 . Melee . | . . . . . . . . . . . . . Knockbacks 7 | . . . . . . . . . . . 7 . Impact 1 | . . . . . . . . . . . 1 . Kinetic 6 | . . . . . . . . . . . 6 . Secondary . | . . . . . . . . . . . . . Self-Inflicted Damage 148 | . 18 . . 104 . . . . . . 26 . Shots 5 | . 1 . . 3 . . . . . . 1 . Rammed 14 | . . . . . . . 1 . . . 13 . Targets Rammed 17 | . . . . 1 . . 1 . . . 15 . Kicked 1 | . . . . 1 . . . . . . . . Crushed 2 | . . . . . . . . . . . 2 . Highest Temperature 351 | 252 . . . . 136 231 315 12 48 351 56 30 Average Temperature 63 | 110 . . . . 51 67 90 5 15 75 16 14 Received Heat Transfer 1128 | . 192 . . . 9 57 141 81 27 60 543 18 Siege Activations . | . . . . . . . . . . . . . Robots Corrupted 1 | . . . . . . . . . . . . 1 Combat Hostiles 1 | . . . . . . . . . . . . 1 Parts Fried 3 | . . . . . . . . . . . . 3 Impact Corruptions . | . . . . . . . . . . . . . Robots Melted . | . . . . . . . . . . . . . Combat Hostiles . | . . . . . . . . . . . . . Parts Melted 3 | . 1 . . . . . . . 1 1 . . Heat Transferred 2614 | 372 673 . . 100 . . . 100 666 481 222 . Parts Sabotaged . | . . . . . . . . . . . . . Parts Stolen . | . . . . . . . . . . . . . Parts Stripped . | . . . . . . . . . . . . . Power Chain Reactions 1 | . . . . . . . . 1 . . . . Missiles Intercepted . | . . . . . . . . . . . . . Alert | -11 -10 -10 -10 -9 -8 -7 -7 -6 -5 -4 -3 -3 ------- Run | Scr Mat Min Exi Min Mat Fac Sto Fac Fac Fac Res Arm Peak Influence 733 | 10 179 69 . 190 263 304 672 733 398 253 506 406 Initial 270 | . 6 69 . . 74 65 137 214 270 121 102 215 Average 225 | 3 85 69 . 170 129 125 442 528 244 124 361 304 Maximum Alert Level 3 | . . . . . 1 1 2 3 1 1 2 2 Low Security (%) 59 | 100 100 100 . 100 92 85 20 . 40 95 4 . Level 1 25 | . . . . . 7 14 13 23 59 4 56 98 Level 2 14 | . . . . . . . 66 64 . . 38 1 Level 3 1 | . . . . . . . . 12 . . . . Level 4 . | . . . . . . . . . . . . . Level 5 . | . . . . . . . . . . . . . High Security . | . . . . . . . . . . . . . Max Security . | . . . . . . . . . . . . . Squads Dispatched 34 | . 2 . . . . 8 8 2 4 3 6 1 Investigation 7 | . . . . . . 3 1 1 1 . 1 . Extermination 10 | . . . . . . 4 1 1 1 2 1 . Reinforcement 10 | . 2 . . . . 1 . . 1 1 4 1 Assault 1 | . . . . . . . . . 1 . . . Garrison 6 | . . . . . . . 6 . . . . . Intercept . | . . . . . . . . . . . . . Construction Impeded 3 | . . . . . . 1 . . . . 2 . Haulers Reinforced 1 | . . . . . . . . . . . 1 . Stealth | -11 -10 -10 -10 -9 -8 -7 -7 -6 -5 -4 -3 -3 --------- Run | Scr Mat Min Exi Min Mat Fac Sto Fac Fac Fac Res Arm Distress Signals 16 | . 4 . . . . 2 4 1 . . 3 2 Communications Jammed . | . . . . . . . . . . . . . Distress Signals . | . . . . . . . . . . . . . Times Spotted 170 | . 21 . . 4 7 24 15 17 11 18 40 13 Peak Tracking Total 7 | . 4 . . 4 2 4 5 6 3 3 6 7 Tactical Retreats 11 | . 1 . . . . 2 . 1 . 1 5 1 Traps | -11 -10 -10 -10 -9 -8 -7 -7 -6 -5 -4 -3 -3 ------- Run | Scr Mat Min Exi Min Mat Fac Sto Fac Fac Fac Res Arm Traps Triggered 7 | . 1 . . . . 2 . . 1 2 1 . Indirectly . | . . . . . . . . . . . . . Trap Hack Attempts . | . . . . . . . . . . . . . Triggered . | . . . . . . . . . . . . . Disarmed . | . . . . . . . . . . . . . Reprogrammed . | . . . . . . . . . . . . . Reused . | . . . . . . . . . . . . . Traps Extracted . | . . . . . . . . . . . . . Installed . | . . . . . . . . . . . . . Triggered . | . . . . . . . . . . . . . Power Sources Rigged 17 | . . . . . 2 7 2 3 2 . 1 . Exploded 11 | . . . . . . 2 3 1 . 1 4 . Machines | -11 -10 -10 -10 -9 -8 -7 -7 -6 -5 -4 -3 -3 ---------- Run | Scr Mat Min Exi Min Mat Fac Sto Fac Fac Fac Res Arm Machines Disabled 16 | . . . . 2 1 . 6 . 2 2 1 2 Max in Single Turn 2 | . . . . 2 1 . 1 . 1 2 1 1 Garrison Access 3 | . . . . . . 1 . . 2 . . . Machines Sabotaged . | . . . . . . . . . . . . . Garrisons Compromised . | . . . . . . . . . . . . . Overloaded Fab Kills . | . . . . . . . . . . . . . Fab Network Shutdowns 1 | . . . . . . . . 1 . . . . Hacking | -11 -10 -10 -10 -9 -8 -7 -7 -6 -5 -4 -3 -3 --------- Run | Scr Mat Min Exi Min Mat Fac Sto Fac Fac Fac Res Arm Machines Accessed 45 | . 6 . 1 . 6 6 3 4 7 5 5 2 Terminals 34 | . 5 . . . 6 4 2 2 5 3 5 2 Fabricators 3 | . . . . . . 1 . 2 . . . . Repair Stations 1 | . . . . . . . . . . 1 . . Recycling Units 2 | . 1 . . . . . . . . 1 . . Scanalyzers . | . . . . . . . . . . . . . Garrison Access 4 | . . . . . . 1 1 . 2 . . . Total Hacks 130 | . 27 . 1 . 18 15 6 9 26 16 9 3 Successful 53 | . 12 . 1 . 10 4 2 3 9 11 . 1 Failed 76 | . 14 . . . 8 11 4 6 17 5 9 2 Catastrophic 11 | . . . . . . 2 . 1 4 . 4 . Database Lockouts 1 | . 1 . . . . . . . . . . . Manual 70 | . 24 . 1 . 8 6 . 3 16 9 1 2 Terminals 101 | . 25 . . . 18 9 3 6 19 9 9 3 Fabricators 6 | . . . . . . 3 . 3 . . . . Repair Stations 4 | . . . . . . . . . . 4 . . Recycling Units 5 | . 2 . . . . . . . . 3 . . Scanalyzers . | . . . . . . . . . . . . . Garrison Access 13 | . . . . . . 3 3 . 7 . . . Terminal Hacks 28 | . 7 . 1 . 8 1 2 1 4 3 . 1 Robot Analysis 5 | . 4 . . . 1 . . . . . . . Prototype ID Bank 1 | . . . . . 1 . . . . . . . Open Door 1 | . . . . . . . 1 . . . . . Level Access Points 1 | . . . . . . . 1 . . . . . Branch Access Points 1 | . . . . . . . . . 1 . . . Terminal Index 3 | . . . . . 1 . . . 1 1 . . Alert Level 4 | . . . . . 1 1 . . 1 1 . . Unreport Threat 1 | . . . . . . . . . 1 . . . Locate Traps 3 | . 1 . . . 1 . . 1 . . . . Dispatch Records 1 | . . . . . . . . . . 1 . . Hauler Manifests 1 | . . . . . 1 . . . . . . . Zone Layout 5 | . 2 . . . 2 . . . . . . 1 EX-Prototype ID Bank 1 | . . . 1 . . . . . . . . . Fabricator Hacks 1 | . . . . . . . . 1 . . . . Build 1 | . . . . . . . . 1 . . . . Repair Station Hacks 4 | . . . . . . . . . . 4 . . Scan Component 2 | . . . . . . . . . . 2 . . Repair 2 | . . . . . . . . . . 2 . . Recycling Unit Hacks 1 | . . . . . . . . . . 1 . . Retrieve Components 1 | . . . . . . . . . . 1 . . Scanalyzer . | . . . . . . . . . . . . . Garrison Access Hacks 2 | . . . . . . 1 . . 1 . . . Seal Access 2 | . . . . . . 1 . . 1 . . . Unauthorized Hacks 17 | . 5 . . . 2 2 . 1 4 3 . . Terminals 17 | . 5 . . . 2 2 . 1 4 3 . . Track 11 | . 4 . . . . 2 . 1 3 1 . . Assimilate 1 | . 1 . . . . . . . . . . . Botnet 5 | . . . . . 2 . . . 1 2 . . Fabricators . | . . . . . . . . . . . . . Repair Stations . | . . . . . . . . . . . . . Recycling Units . | . . . . . . . . . . . . . Scanalyzers . | . . . . . . . . . . . . . Garrison Access . | . . . . . . . . . . . . . Data Cores Recovered 2 | . . . . . 1 . . . 1 . . . Used 1 | . . . . . . . . . 1 . . . Hacking Detections 41 | . 6 . . . 6 5 2 4 6 5 5 2 Full Trace Events 6 | . . . . . . 2 1 1 1 . 1 . Feedback Events 1 | . . . . . . . . 1 . . . . Corruption 1 | . . . . . . . . 1 . . . . Feedback Blocked . | . . . . . . . . . . . . . Robot Schematics Acquired . | . . . . . . . . . . . . . Robots Built 3 | . . . . . . . . 3 . . . . Matter 285 | . . . . . . . . 285 . . . . Time 76 | . . . . . . . . 76 . . . . Total Robot Build Rating 15 | . . . . . . . . 15 . . . . Part Schematics Acquired . | . . . . . . . . . . . . . Parts Built . | . . . . . . . . . . . . . Matter . | . . . . . . . . . . . . . Time . | . . . . . . . . . . . . . Total Part Build Rating . | . . . . . . . . . . . . . Parts Repaired 2 | . . . . . . . . . . 2 . . Time 76 | . . . . . . . . . . 76 . . Parts Recycled . | . . . . . . . . . . . . . Recycled Matter . | . . . . . . . . . . . . . Retrieved Matter . | . . . . . . . . . . . . . Retrieved Components 2 | . . . . . . . . . . 2 . . Parts Scanalyzed . | . . . . . . . . . . . . . Part Schematics Acquired . | . . . . . . . . . . . . . Parts Damaged . | . . . . . . . . . . . . . Bothacking | -11 -10 -10 -10 -9 -8 -7 -7 -6 -5 -4 -3 -3 ------------ Run | Scr Mat Min Exi Min Mat Fac Sto Fac Fac Fac Res Arm Used RIF Installer . | . . . . . . . . . . . . . Robots Hacked . | . . . . . . . . . . . . . Non-combat . | . . . . . . . . . . . . . Combat . | . . . . . . . . . . . . . Robot Hacks Applied . | . . . . . . . . . . . . . Relay Couplers Released 1 | . . . . . . . . . 1 . . . Machine Destruction 1 | . . . . . . . . . 1 . . . Robots Rewired . | . . . . . . . . . . . . . Allies Hacked . | . . . . . . . . . . . . . Hacks Repelled . | . . . . . . . . . . . . . Allies | -11 -10 -10 -10 -9 -8 -7 -7 -6 -5 -4 -3 -3 -------- Run | Scr Mat Min Exi Min Mat Fac Sto Fac Fac Fac Res Arm Total Allies 4 | . 1 . . . . . . 3 . . . . Largest Group 3 | . 1 . . . . . . 3 . . . . Highest-Rated Group 87 | . 10 . . . . . . 87 . . . . Highest-Rated Ally 29 | . 10 . . . . . . 29 . . . . Total Orders . | . . . . . . . . . . . . . Ally Attacks 22 | . . . . . . . . 22 . . . . Total Damage 338 | . . . . . . . . 338 . . . . Kills . | . . . . . . . . . . . . . Allies Corrupted . | . . . . . . . . . . . . . Allies Melted . | . . . . . . . . . . . . . Intel | -11 -10 -10 -10 -9 -8 -7 -7 -6 -5 -4 -3 -3 ------- Run | Scr Mat Min Exi Min Mat Fac Sto Fac Fac Fac Res Arm Robot Analysis Total 5 | . 4 . . . 1 . . . . . . . Derelict Logs Recovered 2 | . . 1 . 1 . . . . . . . . Drone Launches . | . . . . . . . . . . . . . Drone Recoveries . | . . . . . . . . . . . . . Exploration | -11 -10 -10 -10 -9 -8 -7 -7 -6 -5 -4 -3 -3 ------------- Run | Scr Mat Min Exi Min Mat Fac Sto Fac Fac Fac Res Arm Turns Passed 8761 | 127 663 187 274 146 682 1569 450 850 1140 1438 890 345 Spaces Moved 4867 | 54 382 155 224 102 345 810 213 447 590 624 664 257 Core 109 | 6 . . . . . . . . . . 90 13 Treads 3050 | . . . . . 69 810 213 447 590 624 286 11 Legs 1369 | 48 382 155 224 102 276 . . . . . 10 172 Wheels . | . . . . . . . . . . . . . Hover . | . . . . . . . . . . . . . Flight 339 | . . . . . . . . . . . 278 61 Fastest Speed 37 | 50 120 120 120 120 150 170 170 167 167 163 37 37 Average Speed 144 | 116 120 120 120 120 154 170 170 169 169 168 95 89 Slowest Speed 650 | 150 120 120 120 120 190 170 170 170 190 170 650 160 Overloaded Moves . | . . . . . . . . . . . . . Propulsion Burnouts . | . . . . . . . . . . . . . Robots Hopped 3 | . . . . . . . . . . . 3 . Cave-ins Triggered 1 | . . . . . . . . . . 1 . . Exploration Rate (%) 31 | 4 82 23 60 23 36 26 42 13 22 21 27 31 Regions Visited 12 Branch Regions 5 Pre-discovered Areas 1 | . . 1 . . . . . . . . . . Known Exits Taken 3 | . . . . . 1 . 1 . . 1 . . Unknown Exits Taken 9 | 1 1 1 1 1 . 1 . 1 1 . 1 . Scrap Searched 2 | . . 1 . 1 . . . . . . . . Spaces Dug 39 | . . . . . 9 3 . 2 16 9 . . Terrain Destroyed 274 | . 27 . . 61 32 9 36 10 18 20 61 . Melee . | . . . . . . . . . . . . . Projectile 113 | . . . . . 32 9 26 4 18 20 4 . AOE 161 | . 27 . . 61 . . 10 6 . . 57 . Terrain Rammed . | . . . . . . . . . . . . . Walls Destroyed . | . . . . . . . . . . . . . Machines Disabled . | . . . . . . . . . . . . . Actions | -11 -10 -10 -10 -9 -8 -7 -7 -6 -5 -4 -3 -3 --------- Run | Scr Mat Min Exi Min Mat Fac Sto Fac Fac Fac Res Arm Total 6265 | 85 524 156 232 121 495 1002 299 534 689 971 830 327 Wait 672 | 5 87 2 . 11 100 92 30 20 15 252 35 23 Move 4849 | 53 381 154 223 101 344 809 212 446 589 622 658 257 Hop 3 | . . . . . . . . . . . 3 . Pick Up 66 | 6 7 . 3 . 7 11 2 7 9 7 6 1 Fast Attach 59 | 6 1 . . . 4 3 . 4 2 10 17 12 Attach 22 | . 3 . . . 2 1 . 3 2 3 6 2 Detach 9 | . 1 . . . . 1 . 2 . . 2 3 Swap 57 | . 2 . . 2 7 7 5 8 10 13 3 . Drop 66 | . 4 . 6 2 8 8 2 7 9 8 9 3 Fire 422 | 15 38 . . 4 21 63 45 34 51 55 70 26 Melee 6 | . . . . . . . . . . . 6 . Ram 1 | . . . . . . . . . . . 1 . Kick 3 | . . . . 1 . . . . . . 2 . Crush 12 | . . . . . . . 1 . . . 11 . Escape Stasis 1 | . . . . . . . . . . 1 . . Rewire . | . . . . . . . . . . . . . Trap 17 | . . . . . 2 7 2 3 2 . 1 . Miscellaneous . | . . . . . . . . . . . . . Route ------- -11/Scrapyard -10/Materials (discovered 5 exits: [*Mat x3] / [*Min x2]) -10/Mines -10/Exiles -9/Mines -8/Materials (discovered 2 exits: *Fac x2) -7/Factory (discovered 2 exits: *Sto / [*Low]) -7/Storage -6/Factory (discovered 2 exits: *Fac / [*Low]) -5/Factory (discovered 5 exits: *Fac / *Upp x2 / Ext x2) -4/Factory (discovered 2 exits: *Res / *Upp) -3/Research -3/Armory History --------- Turn | Location | Event 14 | -11/Scrapyard | Discovered new exit (range 14) 128 | -11/Scrapyard | Entered Materials 186 | -10/Materials | Discovered new exit (range 8) 306 | -10/Materials | Build established: Mutant 324 | -10/Materials | Discovered new exit (range 11) 462 | -10/Materials | Discovered new exit (range 16) 489 | -10/Materials | Discovered new exit (range 16) 582 | -10/Materials | Central database locked down 783 | -10/Materials | Discovered new exit (range 7) 791 | -10/Materials | Entered Mines 797 | -10/Mines | Met a Derelict bent on vengeance 880 | -10/Mines | Learned location of Zion (-6) 903 | -10/Mines | Deemed a non-threat by the Exiles lab entrance 973 | -10/Mines | Discovered new exit (range 5) 978 | -10/Mines | Entered Exiles 1011 | -10/Exiles | Met 8R-AWN 1028 | -10/Exiles | Met EX-HEX 1066 | -10/Exiles | Met EX-BIN 1085 | -10/Exiles | Aligned with FarCom system 1086 | -10/Exiles | Given EX-Vault access code 1115 | -10/Exiles | Opened EX-Vault 1126 | -10/Exiles | Found XL Autogun Array 1128 | -10/Exiles | Found Superbattery 1136 | -10/Exiles | Found PSU Rigger 1162 | -10/Exiles | Warned to stay clear of 0b10 Research branches 1197 | -10/Exiles | Met EX-DEC 1236 | -10/Exiles | Discovered new exit (range 14) 1252 | -10/Exiles | Stole three prototypes: Superbattery, PSU Rigger, XL Autogun Array 1252 | -10/Exiles | Entered Mines 1328 | -9/Mines | Assembled infested the area 1333 | -9/Mines | Assisted by a Guerilla fighting off Assembled 1334 | -9/Mines | Received a Rocket Launcher from a helpful Derelict 1383 | -9/Mines | Discovered new exit (range 7) 1386 | -9/Mines | Learned 4 Materials zone layouts 1398 | -9/Mines | Entered Materials 1398 | -8/Materials | Evolved 4 slots: Propulsion x1, Utility x1, Weapon x2 1399 | -8/Materials | Identified exit to Factory 1714 | -8/Materials | Build established: Skirmisher 1729 | -8/Materials | Discovered exit to Factory (range 15) 2080 | -8/Materials | Entered Factory 2080 | -7/Factory | Evolved 2 slots: Utility x2 2082 | -7/Factory | FarCom data flow suspended 2353 | -7/Factory | Discovered new exit (range 5) 3179 | -7/Factory | Discovered new exit (range 8) 3649 | -7/Factory | Entered Storage 3661 | -7/Storage | Identified exit to Factory 3798 | -7/Storage | Garrison activated, responded to threat 4099 | -7/Storage | Entered Factory 4099 | -6/Factory | Evolved 2 slots: Propulsion x1, Utility x1 4203 | -6/Factory | Fabricated G-50 Soldier (x3) 4295 | -6/Factory | Local fabrication network quarantined 4612 | -6/Factory | Discovered new exit (range 21) 4838 | -6/Factory | Discovered new exit (range 7) 4949 | -6/Factory | Entered another Factory area 4949 | -5/Factory | Evolved 2 slots: Utility x1, Weapon x1 4963 | -5/Factory | Found Prototype Processor 4991 | -5/Factory | Identified Exp. Signal Interpreter 5478 | -5/Factory | Build established: Trapper-Mutant 5541 | -5/Factory | Identified exit to Upper Caves 5541 | -5/Factory | Identified exit to Extension 5782 | -5/Factory | Build established: Trapper-Skirmisher 5960 | -5/Factory | Found Prototype Launcher 6000 | -5/Factory | Identified Scatter Rocket Array 6040 | -5/Factory | Discovered new exit (range 12) 6089 | -5/Factory | Entered another Factory area 6089 | -4/Factory | Evolved 2 slots: Propulsion x1, Utility x1 6176 | -4/Factory | Repaired Imp. Terrain Scanner 6221 | -4/Factory | Repaired Mic. Nuclear Core 6442 | -4/Factory | Crushed by falling debris 6868 | -4/Factory | Build established: Trapper-Gunner 7076 | -4/Factory | Discovered new exit (range 5) 7093 | -4/Factory | Identified exit to Upper Caves 7378 | -4/Factory | Found Prototype Slashing Weapon 7410 | -4/Factory | Identified Vibroblade 7470 | -4/Factory | Discovered new exit (range 17) 7497 | -4/Factory | Identified exit to Research 7527 | -4/Factory | Entered Research 7527 | -3/Research | Evolved 2 slots: Propulsion x1, Utility x1 7771 | -3/Research | Spotted B-86 Titan 7951 | -3/Research | Build established: Trapper-Skirmisher 8011 | -3/Research | Lost 3 parts (1u2w) 8207 | -3/Research | Released all parts (5) 8226 | -3/Research | Core integrity fell below 50% 8237 | -3/Research | Lost 14 parts (1p6n2u5w) 8266 | -3/Research | Spotted B-86 Titan 8269 | -3/Research | Core integrity fell below 20% 8408 | -3/Research | Discovered new exit (range 21) 8414 | -3/Research | Build established: Mutant 8417 | -3/Research | Entered Armory 8762 | -3/Armory | Self-destructed Last Messages --------------- 08622_ H-77 Assassin destroyed. 08627_ Acquired Prototype Leg. 08627_ Identified Enh. Biometal Leg. 08628_ Dropped Myomer Leg. 08630_ Acquired Enh. Biometal Leg. 08631_ Dropped Myomer Leg. 08633_ Acquired Enh. Biometal Leg. 08634_ Dropped Myomer Leg. 08636_ Acquired Enh. Biometal Leg. 08639_ System corrupted: Energy discharge (-26). 08641_ Acquired 83 matter. 08643_ Slug penetrates Wall. 08647_ Destroyed Adv. Sensor Array. 08704_ Connecting with Terminal... 08712_ System corrupted: Com. HERF Cannon targeting data glitched. 08712_ Terminal disabled. 08737_ W-44 Eye sends out distress signal. 08748_ Slug penetrates Reinforced Shell. 08756_ Reinforced Shell breached. 08761_ Acquired Enh. Nova Cannon. Map ----- +----------------------------------------------------+ | ???????????????????? ]!! """ #? | | ?????????????????? ]!! #? | | ???????????????????? ## """## ]!! #? | | ????????????????????"" ??#"" F""?# """ #? | | ???????????????????""" ???#""""""?# """ #? | | ????????????????# """????# """"??# """ #? | | ????????????????# """????##??????# #? | | ????????????????# """ ???????????# #? | | ????????????????# ??????????# """ #? | | ????????????????? ?????????# // """ #? | | ?????????????????? """ ########## // """ #? | | ?????????????????? """ /w ## | | ????????????????? """ | | ????????????????# """ | | ????????????????# """ ############ | | ????????????????# d #??????????? | | ????????????????#| ######?????? | | ????????????????# d #?????? | | ????????????????# #############d #?????? | | ???????????????????############d### !!! #?????? | | ???????????????????# #?# !! #?????? | | ???????????????????# #?# !! #?????? | | ???????????????????# #?# #?????? | | ???????????????????# #?# +?????? | | ???????????????????# " #?# ######?????? | | ???????????????????#??"]]@ #?# #??????????? | | ??????????????????????"]]] #?# #??????????? | | ??????????????????????" #?# #??????????? | | ????????????????????? #?# ??????????? | | ???????????????????? #?# ??????????? | | ???????????????????# #?? ??????????? | | ???????????????????# #?? ?????????? | | ???????????????????#####+########?? = "?????????? | | ??????????????????????????????????? "?????????? | | ???????????????????????????????????? ????????????? | | ?????????????????????????????????????????????????? | | ?????????????????????????????????????????????????? | | ?????????????????????????????????????????????????? | | ?????????????????????????????????????????????????? | | ?????????????????????????????????????????????????? | | ?????????????????????????????????????????????????? | | ?????????????????????????????????????????????????? | | ?????????????????????????????????????????????????? | | ?????????????????????????????????????????????????? | | ?????????????????????????????????????????????????? | | ?????????????????????????????????????????????????? | | ?????????????????????????????????????????????????? | | ?????????????????????????????????????????????????? | | ?????????????????????????????????????????????????? | | ?????????????????????????????????????????????????? | +----------------------------------------------------+ Best States ------------- Heat Dissipation 77 Energy Generation 23 Energy Capacity 2170 Matter Stores 300 Matter Capacity 300 Sight Range 22 Robot Scan Range 13 Terrain Scan Range 16 Terrain Scan Density 210 Armor Coverage 225 Propulsion Shielding 66 Evasion (%) 62 Targeting Accuracy 16 Recoil Reduction 6 Energy Filtering 50 Offensive Hacking 10 Item Schematics ----------------- None Robot Schematics ------------------ None Fabricated ------------ G-50 Soldier | x3 | -6/Factory | Preloaded Alien Tech Used ----------------- None Achievements -------------- None Challenges ------------ None Game ------ Seed TeslaAntigravInterrupter Manual? 0 Play Time 01:24:24 Cumulative 270.8 hours Start 2021.06.14 @ 09:12:06 End 2021.06.14 @ 10:59:43 Sessions 1 Manual Loads 0 Difficulty Rogue Special Mode None Game No. 359 Rogue 355 Adventurer 0 Explorer 4 Win Type - Total 5 Types 4/0/0/1/0/0/0/0/0 Lore% 80 Gallery% 89 Achievement% 62 Wizard Run 0 Options --------- ASCII 1 Keyboard 1 Movement Numpad Keybinds 0 Fullscreen 2 Font 18/X11 Map View 76x50 Tactical HUD 1 Map Filters NONE Filters NONE Steam X RUN: 7695eb7c-df78-45e1-820c-03474b3369d6